[Event "Irish Championship 2026"]
[Site "Talbot Hotel Stillorgan, Co.Dublin, IE"]
[Date "2026.08.06"]
[Round "6"]
[White "Heron, Lorcan"]
[Black "Dash, Shaurya"]
[Result "0-1"]
[Board "79"]
[TimeControl "40/5400+30:1800+30"]
[WhiteFideId "2529343"]
[BlackFideId "2534789"]
[WhiteElo "1926"]
[BlackElo "1751"]
[WhiteClock "0:20:16"]
[BlackClock "0:15:20"]
[Variant "Standard"]
[EndDate "2026.08.06"]
[EndTime "17:03:48"]

1. e4 {[%clk 1:30:50]}  c5 {[%clk 1:30:52]} 2. Nf3 {[%clk 1:31:17]}  d6 {[%clk 1:31:16]} 3. d4 {[%clk 1:31:45]}  cxd4 {[%clk 1:31:43]}
4. Nxd4 {[%clk 1:32:12]}  Nf6 {[%clk 1:31:49]} 5. Nc3 {[%clk 1:32:40]}  a6 {[%clk 1:32:13]} 6. Bg5 {[%clk 1:33:07]}  e6 {[%clk 1:32:39]}
7. f4 {[%clk 1:33:34]}  Be7 {[%clk 1:31:07]} 8. Qf3 {[%clk 1:34:00]}  h6 {[%clk 1:28:13]} 9. Bh4 {[%clk 1:34:26]}  Qc7 {[%clk 1:24:29]}
10. O-O-O {[%clk 1:34:24]}  Nbd7 {[%clk 1:13:21]} 11. Be2 {[%clk 1:34:46]}  Rb8 {[%clk 1:04:49]} 12. f5 {[%clk 1:30:14]}  e5 {[%clk 1:00:46]}
13. Ne6 {[%clk 1:03:56]}  fxe6 {[%clk 0:59:42]} 14. fxe6 {[%clk 1:04:17]}  Nb6 {[%clk 0:45:13]} 15. Bxf6 {[%clk 1:04:27]}  gxf6 {[%clk 0:41:38]}
16. Qh5+ {[%clk 1:04:44]}  Kd8 {[%clk 0:41:49]} 17. Bg4 {[%clk 1:03:36]}  Qc6 {[%clk 0:36:13]} 18. Qh3 {[%clk 0:43:04]}  Ra8 {[%clk 0:31:53]}
19. Qe3 {[%clk 0:38:41]}  f5 {[%clk 0:30:09]} 20. exf5 {[%clk 0:34:26]}  Bg5 {[%clk 0:30:11]} 21. Qxg5+ {[%clk 0:34:53]}  hxg5 {[%clk 0:30:32]}
22. Bf3 {[%clk 0:34:41]}  Qc7 {[%clk 0:27:13]} 23. Ne4 {[%clk 0:32:24]}  d5 {[%clk 0:25:37]} 24. Nxg5 {[%clk 0:31:37]}  Ke7 {[%clk 0:21:00]}
25. Rhf1 {[%clk 0:27:53]}  Kf6 {[%clk 0:16:33]} 26. Nf7 {[%clk 0:27:54]}  Rh7 {[%clk 0:16:12]} 27. g4 {[%clk 0:26:16]}  Rxf7 {[%clk 0:15:33]}
28. exf7 {[%clk 0:26:43]}  Kxf7 {[%clk 0:14:39]} 29. Bxd5+ {[%clk 0:21:01]}  Nxd5 {[%clk 0:15:02]} 30. Rxd5 {[%clk 0:20:39]}  Qc4 {[%clk 0:15:12]}
31. Rfd1 {[%clk 0:20:25]}  Qxg4 {[%clk 0:15:29]} 32. Rd8 {[%clk 0:20:16]}  Qxf5 {[%clk 0:15:20]} 0-1

[Event "Irish Championship 2026"]
[Site "Talbot Hotel Stillorgan, Co.Dublin, IE"]
[Date "2026.08.06"]
[Round "6"]
[White "Singhal, Vivaan"]
[Black "OBrien, James Joseph"]
[Result "1/2-1/2"]
[Board "80"]
[TimeControl "40/5400+30:1800+30"]
[WhiteFideId "2516721"]
[BlackFideId "2518813"]
[WhiteElo "1878"]
[BlackElo "1914"]
[WhiteClock "0:03:07"]
[BlackClock "0:16:16"]
[Variant "Standard"]
[EndDate "2026.08.06"]
[EndTime "17:26:07"]

1. d4 {[%clk 1:30:57]}  Nf6 {[%clk 1:30:55]} 2. Nf3 {[%clk 1:31:22]}  g6 {[%clk 1:31:20]} 3. c4 {[%clk 1:31:46]}  Bg7 {[%clk 1:31:47]}
4. e3 {[%clk 1:32:01]}  O-O {[%clk 1:32:07]} 5. Be2 {[%clk 1:32:27]}  c6 {[%clk 1:27:04]} 6. O-O {[%clk 1:30:51]}  d5 {[%clk 1:27:24]}
7. Nbd2 {[%clk 1:31:10]}  Nbd7 {[%clk 1:24:07]} 8. b4 {[%clk 1:26:54]}  dxc4 {[%clk 1:12:39]} 9. Nxc4 {[%clk 1:24:49]}  Nd5 {[%clk 1:10:10]}
10. Qb3 {[%clk 1:20:14]}  N7b6 {[%clk 1:08:50]} 11. a4 {[%clk 1:09:05]}  h6 {[%clk 1:00:59]} 12. a5 {[%clk 0:58:59]}  Nxc4 {[%clk 1:00:29]}
13. Bxc4 {[%clk 0:59:14]}  Be6 {[%clk 0:55:25]} 14. e4 {[%clk 0:51:47]}  Nc7 {[%clk 0:55:38]} 15. Bf4 {[%clk 0:51:30]}  Bxc4 {[%clk 0:52:38]}
16. Qxc4 {[%clk 0:51:22]}  a6 {[%clk 0:42:10]} 17. Rac1 {[%clk 0:43:13]}  Nb5 {[%clk 0:38:27]} 18. Rfd1 {[%clk 0:38:09]}  e6 {[%clk 0:36:04]}
19. d5 {[%clk 0:28:30]}  exd5 {[%clk 0:30:42]} 20. exd5 {[%clk 0:28:42]}  cxd5 {[%clk 0:30:54]} 21. Rxd5 {[%clk 0:27:30]}  Qf6 {[%clk 0:30:20]}
22. Be5 {[%clk 0:26:16]}  Qe6 {[%clk 0:27:40]} 23. Bxg7 {[%clk 0:20:11]}  Rac8 {[%clk 0:24:06]} 24. Rc5 {[%clk 0:14:33]}  Qxc4 {[%clk 0:24:09]}
25. R1xc4 {[%clk 0:10:05]}  Rxc5 {[%clk 0:19:03]} 26. bxc5 {[%clk 0:10:08]}  Kxg7 {[%clk 0:24:56]} 27. c6 {[%clk 0:09:31]}  bxc6 {[%clk 0:22:34]}
28. Rxc6 {[%clk 0:09:50]}  Rd8 {[%clk 0:22:50]} 29. g3 {[%clk 0:09:23]}  Rd6 {[%clk 0:23:04]} 30. Rxd6 {[%clk 0:06:25]}  Nxd6 {[%clk 0:23:31]}
31. Ne5 {[%clk 0:06:41]}  Nb7 {[%clk 0:22:05]} 32. Nd3 {[%clk 0:06:23]}  Kf6 {[%clk 0:21:02]} 33. Nb4 {[%clk 0:06:11]}  Nc5 {[%clk 0:16:16]}
34. Kf1 {[%clk 0:03:07]}  Ke5 {[%clk 0:15:12]} 1/2-1/2

[Event "Irish Championship 2026"]
[Site "Talbot Hotel Stillorgan, Co.Dublin, IE"]
[Date "2026.08.06"]
[Round "6"]
[White "Moull, Arthur"]
[Black "Field, Lila Quinn"]
[Result "1-0"]
[Board "81"]
[TimeControl "40/5400+30:1800+30"]
[WhiteFideId "2517426"]
[BlackFideId "30941334"]
[WhiteElo "1876"]
[BlackElo "1898"]
[WhiteClock "0:27:55"]
[BlackClock "0:00:55"]
[Variant "Standard"]
[EndDate "2026.08.06"]
[EndTime "18:29:53"]

1. d4 {[%clk 1:30:57]}  d5 {[%clk 1:30:52]} 2. c4 {[%clk 1:31:22]}  e6 {[%clk 1:31:17]} 3. Nc3 {[%clk 1:31:47]}  Nf6 {[%clk 1:31:41]}
4. cxd5 {[%clk 1:32:13]}  exd5 {[%clk 1:32:03]} 5. Bg5 {[%clk 1:32:37]}  Be7 {[%clk 1:32:26]} 6. e3 {[%clk 1:33:00]}  h6 {[%clk 1:32:48]}
7. Bh4 {[%clk 1:33:22]}  c6 {[%clk 1:33:12]} 8. Bd3 {[%clk 1:33:45]}  O-O {[%clk 1:33:33]} 9. Nge2 {[%clk 1:33:58]}  Ne8 {[%clk 1:33:48]}
10. Bg3 {[%clk 1:30:37]}  Nd6 {[%clk 1:34:01]} 11. O-O {[%clk 1:29:47]}  Re8 {[%clk 1:26:57]} 12. Qc2 {[%clk 1:30:02]}  Bf8 {[%clk 1:26:17]}
13. b4 {[%clk 1:15:35]}  Nd7 {[%clk 1:22:35]} 14. b5 {[%clk 1:09:42]}  Nb6 {[%clk 1:22:53]} 15. Rfe1 {[%clk 1:03:37]}  Bd7 {[%clk 1:16:33]}
16. bxc6 {[%clk 1:03:22]}  bxc6 {[%clk 1:16:38]} 17. Rac1 {[%clk 0:58:19]}  Rc8 {[%clk 0:54:14]} 18. Ba6 {[%clk 0:56:36]}  Ra8 {[%clk 0:53:55]}
19. Nf4 {[%clk 0:55:06]}  Bf5 {[%clk 0:32:58]} 20. Bd3 {[%clk 0:49:46]}  Bxd3 {[%clk 0:33:00]} 21. Nxd3 {[%clk 0:50:07]}  Ndc4 {[%clk 0:32:29]}
22. Na4 {[%clk 0:47:40]}  Qd7 {[%clk 0:22:31]} 23. Nac5 {[%clk 0:44:56]}  Bxc5 {[%clk 0:21:28]} 24. Nxc5 {[%clk 0:43:12]}  Qc8 {[%clk 0:19:32]}
25. h3 {[%clk 0:33:20]}  Nd7 {[%clk 0:18:24]} 26. Nd3 {[%clk 0:32:19]}  a5 {[%clk 0:16:44]} 27. Red1 {[%clk 0:31:14]}  Ra6 {[%clk 0:15:58]}
28. Qc3 {[%clk 0:26:43]}  Qa8 {[%clk 0:14:31]} 29. Rb1 {[%clk 0:26:32]}  Qa7 {[%clk 0:13:20]} 30. Kh2 {[%clk 0:24:29]}  Rb6 {[%clk 0:12:16]}
31. Rb3 {[%clk 0:23:08]}  a4 {[%clk 0:10:48]} 32. Rb4 {[%clk 0:23:10]}  Rxb4 {[%clk 0:09:11]} 33. Qxb4 {[%clk 0:22:58]}  Rc8 {[%clk 0:08:49]}
34. Rb1 {[%clk 0:18:49]}  Ndb6 {[%clk 0:07:22]} 35. Qc5 {[%clk 0:18:00]}  Qa8 {[%clk 0:03:13]} 36. Rxb6 {[%clk 0:17:02]}  Nxb6 {[%clk 0:03:35]}
37. Qxb6 {[%clk 0:17:30]}  a3 {[%clk 0:03:09]} 38. Nc5 {[%clk 0:17:34]}  Re8 {[%clk 0:02:37]} 39. Bd6 {[%clk 0:15:47]}  Rd8 {[%clk 0:02:01]}
40. Be5 {[%clk 0:15:34]}  Re8 {[%clk 0:01:51]} 41. Na6 {[%clk 0:13:41]}  Qd8 {[%clk 0:23:26]} 42. Qxc6 {[%clk 0:42:01]}  Re6 {[%clk 0:23:42]}
43. Qc7 {[%clk 0:39:15]}  Qa8 {[%clk 0:21:50]} 44. Nb4 {[%clk 0:38:45]}  Re8 {[%clk 0:18:00]} 45. Qc5 {[%clk 0:38:13]}  Qb7 {[%clk 0:12:09]}
46. Nxd5 {[%clk 0:36:29]}  Qb2 {[%clk 0:11:58]} 47. Ne7+ {[%clk 0:34:29]}  Kh7 {[%clk 0:08:58]} 48. Nf5 {[%clk 0:33:37]}  Qxa2 {[%clk 0:08:04]}
49. Nxg7 {[%clk 0:29:33]}  Ra8 {[%clk 0:02:37]} 50. Qc6 {[%clk 0:28:33]}  Qxf2 {[%clk 0:01:16]} 51. Qe4+ {[%clk 0:28:37]}  f5 {[%clk 0:01:09]}
52. Nxf5 {[%clk 0:28:00]}  h5 {[%clk 0:00:41]} 53. Ne7+ {[%clk 0:28:05]}  Kh6 {[%clk 0:00:55]} 54. Qg6# {[%clk 0:27:55]} 1-0

[Event "Irish Championship 2026"]
[Site "Talbot Hotel Stillorgan, Co.Dublin, IE"]
[Date "2026.08.06"]
[Round "6"]
[White "Voogt, Declan"]
[Black "Burke, Kevin A."]
[Result "0-1"]
[Board "82"]
[TimeControl "40/5400+30:1800+30"]
[WhiteFideId "2517388"]
[BlackFideId "2501520"]
[WhiteElo "1849"]
[BlackElo "1896"]
[WhiteClock "1:00:25"]
[BlackClock "0:22:50"]
[Variant "Standard"]
[EndDate "2026.08.06"]
[EndTime "17:30:54"]

1. d4 {[%clk 1:30:57]}  e6 {[%clk 1:30:56]} 2. g3 {[%clk 1:31:24]}  f5 {[%clk 1:31:21]} 3. Bg2 {[%clk 1:31:50]}  Nf6 {[%clk 1:31:46]}
4. Qd3 {[%clk 1:32:17]}  d5 {[%clk 1:30:23]} 5. Bf4 {[%clk 1:32:30]}  c5 {[%clk 1:30:09]} 6. Nf3 {[%clk 1:29:04]}  c4 {[%clk 1:27:19]}
7. Qd1 {[%clk 1:28:37]}  Be7 {[%clk 1:24:27]} 8. O-O {[%clk 1:27:02]}  O-O {[%clk 1:23:21]} 9. b3 {[%clk 1:26:57]}  b5 {[%clk 1:20:35]}
10. bxc4 {[%clk 1:22:47]}  bxc4 {[%clk 1:20:46]} 11. Nbd2 {[%clk 1:22:48]}  Nc6 {[%clk 1:06:31]} 12. c3 {[%clk 1:20:21]}  Bd7 {[%clk 0:59:49]}
13. Rb1 {[%clk 1:14:57]}  Rc8 {[%clk 0:46:08]} 14. Qc2 {[%clk 1:07:52]}  Nh5 {[%clk 0:43:05]} 15. Ne5 {[%clk 0:57:17]}  Nxf4 {[%clk 0:39:44]}
16. gxf4 {[%clk 0:57:20]}  Nxe5 {[%clk 0:39:40]} 17. dxe5 {[%clk 0:55:24]}  Qc7 {[%clk 0:38:47]} 18. Nf3 {[%clk 0:48:19]}  Rb8 {[%clk 0:38:25]}
19. Nd4 {[%clk 0:46:45]}  Ba3 {[%clk 0:33:47]} 20. f3 {[%clk 0:44:03]}  Rxb1 {[%clk 0:27:46]} 21. Rxb1 {[%clk 0:44:08]}  Rb8 {[%clk 0:27:16]}
22. e4 {[%clk 0:41:57]}  Rxb1+ {[%clk 0:25:01]} 23. Qxb1 {[%clk 0:42:19]}  g6 {[%clk 0:24:10]} 24. Nc2 {[%clk 0:41:02]}  Bc5+ {[%clk 0:23:22]}
25. Kf1 {[%clk 0:41:22]}  Qb6 {[%clk 0:23:28]} 26. Qxb6 {[%clk 0:41:31]}  Bxb6 {[%clk 0:23:56]} 27. exd5 {[%clk 0:40:58]}  exd5 {[%clk 0:24:08]}
28. Nb4 {[%clk 0:37:38]}  d4 {[%clk 0:19:24]} 29. Nd5 {[%clk 0:32:37]}  dxc3 {[%clk 0:16:46]} 30. Ke1 {[%clk 0:31:37]}  Ba5 {[%clk 0:13:51]}
31. Kd1 {[%clk 0:32:01]}  Be6 {[%clk 0:10:16]} 32. Ne3 {[%clk 0:31:57]}  Bb6 {[%clk 0:09:56]} 33. Nc2 {[%clk 0:32:09]}  Bc5 {[%clk 0:08:36]}
34. Bf1 {[%clk 0:32:22]}  Bd5 {[%clk 0:07:58]} 35. Be2 {[%clk 0:31:28]}  Kf7 {[%clk 0:05:19]} 36. h4 {[%clk 0:30:32]}  Kg7 {[%clk 0:04:24]}
37. Kc1 {[%clk 0:30:19]}  Kh6 {[%clk 0:04:34]} 38. Ne1 {[%clk 0:30:44]}  Be3+ {[%clk 0:04:32]} 39. Kc2 {[%clk 0:30:53]}  Bxf4 {[%clk 0:04:47]}
40. Kxc3 {[%clk 0:30:54]}  Bxe5+ {[%clk 0:05:11]} 41. Kc2 {[%clk 0:31:04]}  Bg3 {[%clk 0:04:26]} 42. Ng2 {[%clk 0:31:19]}  g5 {[%clk 0:03:44]}
43. Ne3 {[%clk 0:30:44]}  Be6 {[%clk 0:02:40]} 44. Nxc4 {[%clk 0:27:27]}  gxh4 {[%clk 0:29:22]} 45. Ne3 {[%clk 1:00:37]}  Kg5 {[%clk 0:25:18]}
46. Bf1 {[%clk 1:00:25]}  Kf4 {[%clk 0:22:50]} 0-1

[Event "Irish Championship 2026"]
[Site "Talbot Hotel Stillorgan, Co.Dublin, IE"]
[Date "2026.08.06"]
[Round "6"]
[White "Thomas Boby, Aiden"]
[Black "Lorigan, Maxim"]
[Result "0-1"]
[Board "83"]
[TimeControl "40/5400+30:1800+30"]
[WhiteFideId "2535688"]
[BlackFideId "2518198"]
[WhiteElo "1978"]
[BlackElo "1762"]
[WhiteClock "0:01:38"]
[BlackClock "0:07:29"]
[Variant "Standard"]
[EndDate "2026.08.06"]
[EndTime "19:09:10"]

1. e4 {[%clk 1:30:54]}  Nf6 {[%clk 1:30:55]} 2. e5 {[%clk 1:31:13]}  Nd5 {[%clk 1:31:22]} 3. c4 {[%clk 1:31:18]}  Nb6 {[%clk 1:31:47]}
4. d4 {[%clk 1:31:44]}  d6 {[%clk 1:32:13]} 5. f4 {[%clk 1:31:53]}  dxe5 {[%clk 1:32:38]} 6. fxe5 {[%clk 1:32:16]}  Nc6 {[%clk 1:33:03]}
7. Be3 {[%clk 1:32:02]}  Bf5 {[%clk 1:33:24]} 8. Nc3 {[%clk 1:32:24]}  e6 {[%clk 1:33:48]} 9. Nf3 {[%clk 1:32:49]}  Be7 {[%clk 1:34:12]}
10. Be2 {[%clk 1:33:13]}  O-O {[%clk 1:34:36]} 11. O-O {[%clk 1:33:40]}  f6 {[%clk 1:34:59]} 12. exf6 {[%clk 1:33:43]}  Bxf6 {[%clk 1:35:24]}
13. Qd2 {[%clk 1:34:07]}  Qe7 {[%clk 1:35:31]} 14. Rad1 {[%clk 1:33:51]}  Rad8 {[%clk 1:35:39]} 15. Bf2 {[%clk 1:33:50]}  Rd7 {[%clk 1:26:24]}
16. Rfe1 {[%clk 1:18:10]}  Rfd8 {[%clk 1:18:38]} 17. d5 {[%clk 0:51:33]}  Qf7 {[%clk 0:51:45]} 18. Qc1 {[%clk 0:42:38]}  Ne7 {[%clk 0:32:05]}
19. dxe6 {[%clk 0:37:15]}  Bxe6 {[%clk 0:31:33]} 20. Ne4 {[%clk 0:36:05]}  Rxd1 {[%clk 0:28:10]} 21. Rxd1 {[%clk 0:36:00]}  Rxd1+ {[%clk 0:27:39]}
22. Qxd1 {[%clk 0:35:10]}  Nc6 {[%clk 0:20:56]} 23. Nxf6+ {[%clk 0:34:24]}  Qxf6 {[%clk 0:21:11]} 24. b3 {[%clk 0:33:26]}  Bf5 {[%clk 0:17:45]}
25. Nd4 {[%clk 0:31:13]}  Nxd4 {[%clk 0:14:18]} 26. Bxd4 {[%clk 0:31:02]}  Qg5 {[%clk 0:12:42]} 27. Bxb6 {[%clk 0:14:52]}  axb6 {[%clk 0:13:04]}
28. Qd5+ {[%clk 0:14:55]}  Kf8 {[%clk 0:12:59]} 29. Qf3 {[%clk 0:10:19]}  Ke7 {[%clk 0:10:40]} 30. Qxb7 {[%clk 0:10:29]}  Qf4 {[%clk 0:09:17]}
31. Qf3 {[%clk 0:07:54]}  Qd4+ {[%clk 0:08:45]} 32. Kf1 {[%clk 0:07:59]}  Be4 {[%clk 0:08:03]} 33. Qf2 {[%clk 0:08:04]}  Qa1+ {[%clk 0:06:54]}
34. Qe1 {[%clk 0:08:25]}  Qe5 {[%clk 0:05:09]} 35. Bf3 {[%clk 0:07:19]}  Bd3+ {[%clk 0:05:20]} 36. Kf2 {[%clk 0:07:43]}  Qxe1+ {[%clk 0:04:47]}
37. Kxe1 {[%clk 0:08:09]}  Bb1 {[%clk 0:04:48]} 38. a3 {[%clk 0:08:31]}  Kd6 {[%clk 0:04:28]} 39. Kd2 {[%clk 0:08:50]}  c5 {[%clk 0:03:30]}
40. b4 {[%clk 0:07:07]}  Bf5 {[%clk 0:03:10]} 41. Bd5 {[%clk 0:06:40]}  Bd7 {[%clk 0:02:55]} 42. Ke3 {[%clk 0:06:50]}  Ke5 {[%clk 0:29:39]}
43. b5 {[%clk 0:35:48]}  Bf5 {[%clk 0:29:10]} 44. Kd2 {[%clk 0:34:24]}  Kd6 {[%clk 0:27:52]} 45. a4 {[%clk 0:34:21]}  Bg6 {[%clk 0:27:17]}
46. Bf3 {[%clk 0:33:05]}  Ke5 {[%clk 0:26:31]} 47. Kc3 {[%clk 0:32:06]}  Kd6 {[%clk 0:26:34]} 48. g4 {[%clk 0:26:02]}  h6 {[%clk 0:23:04]}
49. h4 {[%clk 0:21:04]}  Bh7 {[%clk 0:20:59]} 50. h5 {[%clk 0:20:01]}  Bb1 {[%clk 0:19:40]} 51. Bd5 {[%clk 0:17:47]}  Bh7 {[%clk 0:19:17]}
52. Bf3 {[%clk 0:10:36]}  Bb1 {[%clk 0:19:16]} 53. Kd2 {[%clk 0:05:50]}  Ke5 {[%clk 0:18:10]} 54. Kc3 {[%clk 0:04:38]}  Kd6 {[%clk 0:18:01]}
55. Be2 {[%clk 0:03:33]}  Be4 {[%clk 0:18:00]} 56. Bd3 {[%clk 0:03:58]}  Bf3 {[%clk 0:18:02]} 57. Bf5 {[%clk 0:04:22]}  Bd1 {[%clk 0:18:21]}
58. Bc2 {[%clk 0:02:01]}  Bxg4 {[%clk 0:18:34]} 59. Bg6 {[%clk 0:01:58]}  Bd1 {[%clk 0:18:13]} 60. Kd3 {[%clk 0:01:22]}  Ke5 {[%clk 0:16:00]}
61. Ke3 {[%clk 0:01:27]}  Bxa4 {[%clk 0:13:52]} 62. Bh7 {[%clk 0:01:03]}  Bd1 {[%clk 0:13:16]} 63. Bg6 {[%clk 0:01:24]}  Bg4 {[%clk 0:13:01]}
64. Bf7 {[%clk 0:01:07]}  Kf6 {[%clk 0:11:18]} 65. Be8 {[%clk 0:00:40]}  Be6 {[%clk 0:10:22]} 66. Kd3 {[%clk 0:00:43]}  Kg5 {[%clk 0:09:33]}
67. Bg6 {[%clk 0:00:37]}  Bg4 {[%clk 0:08:45]} 68. Ke4 {[%clk 0:00:40]}  Bxh5 {[%clk 0:08:36]} 69. Bf5 {[%clk 0:00:41]}  Bf7 {[%clk 0:08:34]}
70. Bd7 {[%clk 0:00:51]}  Bxc4 {[%clk 0:07:53]} 71. Ke5 {[%clk 0:01:19]}  Be2 {[%clk 0:07:20]} 72. Kd6 {[%clk 0:01:38]}  c4 {[%clk 0:07:29]} 0-1

[Event "Irish Championship 2026"]
[Site "Talbot Hotel Stillorgan, Co.Dublin, IE"]
[Date "2026.08.06"]
[Round "6"]
[White "Liu, Murray"]
[Black "Biswal, Saiansh"]
[Result "1/2-1/2"]
[Board "84"]
[TimeControl "40/5400+30:1800+30"]
[WhiteFideId "2517191"]
[BlackFideId "2518155"]
[WhiteElo "1885"]
[BlackElo "1824"]
[WhiteClock "0:31:32"]
[BlackClock "0:23:57"]
[Variant "Standard"]
[EndDate "2026.08.06"]
[EndTime "18:11:10"]

1. d4 {[%clk 1:30:30]}  d5 {[%clk 1:30:28]} 2. Bf4 {[%clk 1:30:41]}  c5 {[%clk 1:30:35]} 3. e3 {[%clk 1:30:37]}  Nc6 {[%clk 1:30:42]}
4. Nf3 {[%clk 1:29:51]}  Nf6 {[%clk 1:29:43]} 5. c3 {[%clk 1:18:09]}  Bg4 {[%clk 1:27:46]} 6. Be2 {[%clk 1:15:02]}  e6 {[%clk 1:20:27]}
7. Nbd2 {[%clk 1:10:18]}  Bd6 {[%clk 1:10:05]} 8. Bg3 {[%clk 0:59:20]}  c4 {[%clk 1:04:32]} 9. Ne5 {[%clk 0:58:15]}  Bxe2 {[%clk 1:04:41]}
10. Qxe2 {[%clk 0:58:25]}  Bxe5 {[%clk 0:56:08]} 11. dxe5 {[%clk 0:51:04]}  Nd7 {[%clk 0:55:22]} 12. f4 {[%clk 0:49:56]}  Nc5 {[%clk 0:46:42]}
13. O-O {[%clk 0:44:52]}  O-O {[%clk 0:42:32]} 14. Qh5 {[%clk 0:39:31]}  f5 {[%clk 0:38:40]} 15. Qh3 {[%clk 0:27:42]}  Qb6 {[%clk 0:32:11]}
16. Rab1 {[%clk 0:20:07]}  Rac8 {[%clk 0:19:53]} 17. Bf2 {[%clk 0:18:33]}  Nd3 {[%clk 0:16:09]} 18. e4 {[%clk 0:14:17]}  Nxf2 {[%clk 0:15:41]}
19. Rxf2 {[%clk 0:14:11]}  fxe4 {[%clk 0:14:08]} 20. Re1 {[%clk 0:10:16]}  Rce8 {[%clk 0:13:45]} 21. Qe3 {[%clk 0:09:09]}  Qxe3 {[%clk 0:13:11]}
22. Rxe3 {[%clk 0:09:29]}  Rf7 {[%clk 0:13:14]} 23. g3 {[%clk 0:03:43]}  Ref8 {[%clk 0:13:22]} 24. h4 {[%clk 0:03:18]}  Nxe5 {[%clk 0:11:28]}
25. Rg2 {[%clk 0:03:15]}  Nc6 {[%clk 0:11:08]} 26. b3 {[%clk 0:03:26]}  b5 {[%clk 0:11:11]} 27. b4 {[%clk 0:02:46]}  a5 {[%clk 0:11:15]}
28. a3 {[%clk 0:03:08]}  axb4 {[%clk 0:11:26]} 29. axb4 {[%clk 0:03:31]}  Ra7 {[%clk 0:11:32]} 30. Kh2 {[%clk 0:03:38]}  Ra2 {[%clk 0:10:32]}
31. Rf2 {[%clk 0:03:39]}  d4 {[%clk 0:09:12]} 32. cxd4 {[%clk 0:03:31]}  Nxd4 {[%clk 0:09:19]} 33. Nxe4 {[%clk 0:03:21]}  Rxf2+ {[%clk 0:09:27]}
34. Nxf2 {[%clk 0:03:44]}  Nc2 {[%clk 0:07:51]} 35. Rxe6 {[%clk 0:04:04]}  Nxb4 {[%clk 0:08:15]} 36. Rb6 {[%clk 0:03:32]}  Rf5 {[%clk 0:03:56]}
37. Ne4 {[%clk 0:03:11]}  Rd5 {[%clk 0:03:08]} 38. Nc3 {[%clk 0:02:40]}  Rd2+ {[%clk 0:03:07]} 39. Kh3 {[%clk 0:02:50]}  Rd3 {[%clk 0:02:15]}
40. Rxb5 {[%clk 0:02:27]}  Rxc3 {[%clk 0:02:04]} 41. Rxb4 {[%clk 0:02:50]}  h6 {[%clk 0:01:53]} 42. Kg4 {[%clk 0:02:07]}  Rc1 {[%clk 0:02:02]}
43. h5 {[%clk 0:01:54]}  c3 {[%clk 0:29:42]} 44. Rc4 {[%clk 0:31:56]}  Kf7 {[%clk 0:29:32]} 45. Kf5 {[%clk 0:32:08]}  c2 {[%clk 0:25:38]}
46. Rc7+ {[%clk 0:32:22]}  Kf8 {[%clk 0:25:55]} 47. g4 {[%clk 0:31:32]}  Ke8 {[%clk 0:23:57]} 1/2-1/2

[Event "Irish Championship 2026"]
[Site "Talbot Hotel Stillorgan, Co.Dublin, IE"]
[Date "2026.08.06"]
[Round "6"]
[White "Fitzgerald, Martin"]
[Black "Braine, Harry"]
[Result "1-0"]
[Board "85"]
[TimeControl "40/5400+30:1800+30"]
[WhiteFideId "2511177"]
[BlackFideId "2518570"]
[WhiteElo "1891"]
[BlackElo "1948"]
[WhiteClock "0:03:43"]
[BlackClock "0:30:32"]
[Variant "Standard"]
[EndDate "2026.08.06"]
[EndTime "18:24:07"]

1. e4 {[%clk 1:30:58]}  c5 {[%clk 1:30:51]} 2. Nf3 {[%clk 1:31:26]}  e6 {[%clk 1:31:14]} 3. d4 {[%clk 1:31:52]}  cxd4 {[%clk 1:31:39]}
4. Nxd4 {[%clk 1:32:18]}  Nf6 {[%clk 1:32:01]} 5. Nc3 {[%clk 1:32:45]}  Nc6 {[%clk 1:32:23]} 6. Be2 {[%clk 1:32:01]}  Bb4 {[%clk 1:32:31]}
7. O-O {[%clk 1:31:23]}  Bxc3 {[%clk 1:32:41]} 8. bxc3 {[%clk 1:31:48]}  Nxe4 {[%clk 1:32:49]} 9. Nxc6 {[%clk 1:31:14]}  bxc6 {[%clk 1:32:14]}
10. Qd4 {[%clk 1:31:00]}  d5 {[%clk 1:23:18]} 11. Qxg7 {[%clk 1:30:54]}  Qf6 {[%clk 1:23:19]} 12. Qxf6 {[%clk 1:31:00]}  Nxf6 {[%clk 1:23:40]}
13. Bf4 {[%clk 1:30:42]}  Nd7 {[%clk 1:16:05]} 14. Rfe1 {[%clk 1:21:23]}  a5 {[%clk 1:08:27]} 15. Rab1 {[%clk 1:18:08]}  Ba6 {[%clk 1:06:11]}
16. Bxa6 {[%clk 1:09:06]}  Rxa6 {[%clk 1:06:33]} 17. Rb7 {[%clk 1:08:57]}  Kd8 {[%clk 0:57:54]} 18. Reb1 {[%clk 1:05:36]}  Ra8 {[%clk 0:47:36]}
19. Rc7 {[%clk 1:01:59]}  Rc8 {[%clk 0:40:16]} 20. Rbb7 {[%clk 0:59:54]}  Rxc7 {[%clk 0:39:55]} 21. Bxc7+ {[%clk 0:59:28]}  Ke7 {[%clk 0:37:01]}
22. Ra7 {[%clk 0:50:46]}  Rc8 {[%clk 0:34:32]} 23. Bg3 {[%clk 0:43:48]}  f6 {[%clk 0:32:45]} 24. Rxa5 {[%clk 0:43:18]}  e5 {[%clk 0:32:49]}
25. Kf1 {[%clk 0:43:03]}  Rb8 {[%clk 0:32:26]} 26. Ke2 {[%clk 0:43:20]}  Rb1 {[%clk 0:30:05]} 27. a4 {[%clk 0:33:14]}  Kd6 {[%clk 0:28:26]}
28. h4 {[%clk 0:17:19]}  h5 {[%clk 0:24:42]} 29. f4 {[%clk 0:13:28]}  Rg1 {[%clk 0:23:34]} 30. fxe5+ {[%clk 0:11:49]}  fxe5 {[%clk 0:22:35]}
31. Bf2 {[%clk 0:09:56]}  Rxg2 {[%clk 0:22:23]} 32. Ra8 {[%clk 0:08:34]}  Nf6 {[%clk 0:19:25]} 33. Kf1 {[%clk 0:08:07]}  Rg4 {[%clk 0:19:36]}
34. a5 {[%clk 0:06:07]}  Ra4 {[%clk 0:11:57]} 35. a6 {[%clk 0:06:06]}  c5 {[%clk 0:09:44]} 36. a7 {[%clk 0:05:31]}  Nd7 {[%clk 0:09:23]}
37. Bxc5+ {[%clk 0:03:06]}  Kc7 {[%clk 0:08:09]} 38. Rh8 {[%clk 0:01:10]}  Nxc5 {[%clk 0:06:13]} 39. a8=Q {[%clk 0:00:47]}  Rxa8 {[%clk 0:06:33]}
40. Rxa8 {[%clk 0:01:42]}  Ne4 {[%clk 0:06:19]} 41. Rh8 {[%clk 0:25:53]}  Kd6 {[%clk 0:34:37]} 42. Ke1 {[%clk 0:22:05]}  Nf6 {[%clk 0:34:53]}
43. Ke2 {[%clk 0:20:59]}  Ke6 {[%clk 0:34:55]} 44. Kd3 {[%clk 0:19:59]}  Kf5 {[%clk 0:32:21]} 45. Rf8 {[%clk 0:18:44]}  Ke6 {[%clk 0:31:23]}
46. c4 {[%clk 0:15:56]}  e4+ {[%clk 0:31:16]} 47. Kd4 {[%clk 0:15:29]}  dxc4 {[%clk 0:31:35]} 48. Kxc4 {[%clk 0:15:00]}  Ke5 {[%clk 0:31:17]}
49. Kc3 {[%clk 0:09:12]}  Nd5+ {[%clk 0:31:19]} 50. Kd2 {[%clk 0:09:25]}  e3+ {[%clk 0:30:27]} 51. Ke2 {[%clk 0:08:21]}  Ke4 {[%clk 0:30:15]}
52. Re8+ {[%clk 0:03:41]}  Kd4 {[%clk 0:30:32]} 53. Rd8 {[%clk 0:03:43]} 1-0